{"text_format":"1","workbook":"xlsx","n_sheets":5,"sheets":["Задание","Часть 1","Часть 2","Часть 3","g8f9"],"not_rendered":{"charts":0,"images":1,"macros":1,"external_links":0,"defined_names":0,"comments":0,"pivot_tables":0},"unopened":[],"bounds":{"document_bytes":16777216,"sheet_cells":100000,"rows_first":2000,"rows_last":500,"rows_between":2000,"halvings":0,"cell_chars":16384,"cell_head_chars":4096},"cells_cut":0,"cells_raw":0,"read":"whole","date_system":"1900"}

{"sheet":"Задание","index":0,"n_rows":9,"n_cols":6,"rows_kept":9,"cut":false,"hidden":false,"merged":[[2,1,2,8],[7,1,7,4]]}
[]
[]
[null,"Выполните лабораторную работу по теме \"Вероятность событий\".\nВо всех ячейках, где указывается вычисляемый ответ, должна быть записана расчетная формула, иначе работа считается незачтённой. \nРешение задач потом нужно суметь объяснить преподавателю."]
[]
[]
[]
[]
[null,"Работу выполнил(а)"]
[null,null,null,null,null,"Фамилия Имя"]

{"sheet":"Часть 1","index":1,"n_rows":67,"n_cols":24,"rows_kept":67,"cut":false,"hidden":false,"merged":[[50,0,50,24],[60,0,60,24],[66,18,66,19],[51,2,51,24],[1,2,1,24],[59,4,59,23],[57,4,57,23],[55,4,55,23],[53,4,53,23],[42,2,42,24],[28,14,28,15],[28,16,28,17],[27,15,27,23],[25,15,25,23],[23,15,23,23],[20,16,20,17],[22,16,22,17],[24,14,24,15],[24,16,24,17],[0,0,0,24],[34,2,40,8],[35,19,36,23],[38,21,39,22],[38,23,39,23],[34,0,40,0],[32,2,32,24],[3,3,3,23],[4,2,4,10],[30,1,30,22],[19,15,19,23],[26,16,26,17],[21,15,21,23],[7,18,7,19],[20,18,20,19],[22,18,22,19],[49,2,49,12],[16,2,16,24],[47,2,47,11],[47,13,47,21],[49,13,49,21],[26,14,26,15],[35,18,36,18],[24,18,24,19],[26,18,26,19],[28,18,28,19],[64,17,65,17],[64,18,65,19],[45,3,45,23],[2,2,2,10],[63,3,63,10],[20,14,20,15],[17,2,17,16],[64,2,65,10],[22,14,22,15],[64,13,64,14],[65,13,65,14],[61,2,61,24],[5,13,5,14],[5,17,6,17],[5,18,6,19],[6,13,6,14]]}
["Указание: В имеющихся шаблонах в ячейках с желтой заливкой следует указать события, \nm - количество благоприятных исходов, n - количество всех возможных исходов."]
["№ 1",null,"По правилам игры «Морской бой» на поле 10×10 клеток размещаются четыре однопалубных корабля (по одной клетке), три двухпалубных, два трехпалубных и один четырехпалубный. Найдите вероятность первым же выстрелом попасть в какой-нибудь из кораблей противника."]
[]
[null,null,"А - "]
[null,null,"Пример расположения кораблей:"]
[null,null,null,null,null,null,null,null,null,null,null,null,"m=",null,null,null,null,"P(A)="]
[null,null,null,null,null,null,null,null,null,null,null,null,"n="]
[null,null,null,null,null,null,null,null,null,null,null,null,null,null,null,null,null,null,{"$f":"IF(S6=0.2,\"Верно\",\"\")","v":""}]
[]
[]
[]
[]
[]
[]
[]
[]
["№ 2",null,"На рисунке показано положение кораблей в игре «Морской бой». Розовым цветом показаны потопленные корабли противника. У противника остался только один двухпалубный корабль, положение которого неизвестно. Клетки, в которых нарисованы звездочки — это клетки, по которым мы уже стреляли. В них не может быть корабля. Считая равновозможными любые допустимые положения последнего корабля, найдите вероятность того, что вы попадете в него, выстрелив в поле: а) к4;     б) з1;     в) к1;     г) е7;     д) е8.\nВ какое поле нужно выстрелить, чтобы вероятность подбить последний корабль была наибольшей?"]
[null,null,"Определеите возможные варианты расположения оставшегося двухпалубного корабля. Отметьте их на рисунке, т.е. задайте для ячеек цвет заливки или границу или узор (диалоговое окно Шрифт - вкладка Заливка - Узор)."]
[null,null,null,"а","б","в","г","д","е","ж","з","и","к"]
[null,null,1,"*","*","*","*","*",null,"*",null,null,null,"а)","A -"]
[null,null,2,"*",null,"*","*","*","*","*","*","*",null,null,"P(A)=",null,null,null,{"$f":"IF(Q21=0,\"Верно\",\"\")","v":"Верно"}]
[null,null,3,"*",null,"*",null,"*",null,null,null,"*","*","б)","B -"]
[null,null,4,"*",null,"*","*","*","*","*","*","*",null,null,"P(B)=",null,null,null,{"$f":"IF(Q23=1/7,\"Верно\",\"\")","v":""}]
[null,null,5,"*",null,"*",null,null,null,"*","*","*","*","в)","C -"]
[null,null,6,"*","*","*","*","*","*","*","*",null,"*",null,"P(C)=",null,null,null,{"$f":"IF(Q25=2/7,\"Верно\",\"\")","v":""}]
[null,null,7,"*",null,"*","*","*",null,"*","*",null,"*","г)","D -"]
[null,null,8,"*","*","*","*",null,null,null,"*","*","*",null,"P(D)=",null,null,null,{"$f":"IF(Q27=1/7,\"Верно\",\"\")","v":""}]
[null,null,9,"*",null,null,"*","*",null,"*","*","*","*","д)","E -"]
[null,null,10,"*","*","*","*",null,"*","*","*",null,"*",null,"P(E)=",null,null,null,{"$f":"IF(Q29=4/7,\"Верно\",\"\")","v":""}]
[]
[null,"В какое поле нужно выстрелить, чтобы вероятность подбить последний корабль была наибольшей?"]
[null,null,null,null,null,null,null,null,null,null,null,null,null,null,null,null,null,null,null,null,null,null,null,{"$f":"IF(X31=\"е8\",\"Верно\",\"\")","v":""}]
["№ 3",null,"Брошены две игральные кости. Какова вероятность, что хотя бы на одном из них выпадет 6 очков?"]
[]
["Указание",null,"С помощью формулы заполните таблицу значениями со всеми возможными вариантами выпадения очков на двух кубиках. Создайте в таблице правило условного форматирования ячеек, содержащих благоприятствующие исходы.",null,null,null,null,null,null,null,null,1,2,3,4,5,6]
[null,null,null,null,null,null,null,null,null,null,1,null,null,null,null,null,null,null,"A - ","хотя бы на одном кубике выпадет 6 очков"]
[null,null,null,null,null,null,null,null,null,null,2]
[null,null,null,null,null,null,null,null,null,null,3]
[null,null,null,null,null,null,null,null,null,null,4,null,null,null,null,null,null,null,"m=",null,null,"P(A)="]
[null,null,null,null,null,null,null,null,null,null,5,null,null,null,null,null,null,null,"n="]
[null,null,null,null,null,null,null,null,null,null,6,null,null,null,null,null,null,null,null,null,null,null,null,{"$f":"IF(ROUND(X39,3)=0.306,\"Верно\",\"\")","v":""}]
[]
["№ 4",null,"Приведите пример события, вероятность которого равна нулю в случайном эксперименте с бросанием двух игральных костей. "]
[]
[]
[null,null,"А - "]
[]
[null,null,"Как называется такое событие?"]
[]
[null,null,"Является ли данное событие случайным?"]
["Комментарий \"Верно\" не будет появляться в данном задании"]
["№ 5",null,"В люстре пять новых лампочек. Событие A состоит в том, что в течение года:\na. перегорит хотя бы одна из них;\nb. перегорит ровно две лампочки;\nc. перегорит более трех лампочек;\nd. перегорит меньше четырех лампочек.\nДля каждого из этих событий опишите словами событие Ā."]
[]
[null,null,"a.","Ā -"]
[]
[null,null,"b.","Ā -"]
[]
[null,null,"c.","Ā -"]
[]
[null,null,"d.","Ā -"]
["Комментарий \"Верно\" не будет появляться в данном задании"]
["№ 6",null,"Из колоды в 36 карт наугад вытаскивают две карты. Какова вероятность, что на руках окажется марьяж?\n(Марьяж - дама и король одной масти)"]
[]
[null,null,"А - "]
[null,null,"Используйте формулы комбинаторики для нахождения общего числа исходов",null,null,null,null,null,null,null,null,null,"m=",null,null,null,null,"P(A)="]
[null,null,null,null,null,null,null,null,null,null,null,null,"n="]
[null,null,null,null,null,null,null,null,null,null,null,null,null,null,null,null,null,null,{"$f":"IF(ROUND(S65,4)=0.0063,\"Верно\",\"\")","v":""}]

{"sheet":"Часть 2","index":2,"n_rows":89,"n_cols":25,"rows_kept":89,"cut":false,"hidden":false,"merged":[[10,14,10,15],[19,14,19,15],[41,4,41,5],[31,20,31,21],[25,20,25,21],[60,7,60,8],[71,17,71,18],[72,0,73,0],[89,0,90,0],[92,3,92,10],[93,3,93,10],[93,16,93,17],[93,19,93,20],[93,21,93,22],[93,23,93,24],[89,1,90,1],[88,23,88,24],[11,1,12,1],[20,1,21,1],[42,1,43,1],[61,1,62,1],[72,1,73,1],[16,20,16,21],[28,20,28,21],[36,20,36,21],[39,20,39,21],[26,3,26,10],[23,3,23,10],[42,2,43,24],[44,2,46,24],[48,10,48,16],[57,3,57,18],[61,2,62,24],[17,2,17,10],[38,3,38,10],[38,18,38,19],[38,20,38,21],[39,3,39,10],[39,18,39,19],[40,2,40,3],[70,13,70,16],[40,4,40,5],[70,17,70,18],[32,3,32,10],[99,23,99,24],[95,3,95,10],[96,23,96,24],[98,3,98,10],[99,3,99,10],[99,16,99,17],[99,19,99,20],[96,3,96,10],[96,16,96,17],[96,19,96,20],[99,21,99,22],[96,21,96,22],[35,20,35,21],[36,3,36,10],[36,18,36,19],[87,17,87,18],[24,20,24,21],[27,3,27,10],[28,3,28,10],[28,18,28,19],[29,2,29,10],[30,18,30,19],[30,20,30,21],[27,18,27,19],[27,20,27,21],[8,2,8,10],[7,3,7,10],[9,2,9,10],[7,20,7,21],[5,2,5,10],[0,0,1,24],[6,3,6,10],[2,0,3,0],[2,2,3,24],[6,20,6,21],[6,18,6,19],[7,18,7,19],[2,1,3,1],[42,0,43,0],[9,12,9,13],[9,14,9,15],[20,0,21,0],[24,3,24,10],[58,5,59,6],[58,7,59,8],[61,0,62,0],[44,0,46,0],[11,0,12,0],[14,2,14,10],[15,3,15,10],[11,2,12,24],[33,3,33,10],[34,2,34,10],[37,2,37,10],[18,12,18,13],[18,14,18,15],[18,2,18,10],[30,2,30,10],[35,3,35,10],[35,18,35,19],[20,2,21,24],[24,18,24,19],[15,18,15,19],[15,20,15,21],[16,3,16,10],[16,18,16,19],[88,4,88,5],[76,2,76,8],[76,10,76,16],[85,2,85,9],[48,2,48,8],[48,18,48,24],[66,3,66,9],[67,3,67,9],[68,3,68,9],[72,2,73,24],[65,2,65,9],[63,2,63,24],[70,5,70,6],[70,8,70,9],[69,4,69,5],[87,21,87,22],[74,2,74,24],[86,3,86,9],[87,3,87,9],[86,17,86,18]]}
["Указание: В имеющихся шаблонах в ячейках с желтой заливкой следует указать события, \nm - количество благоприятных исходов, n - количество всех возможных исходов."]
[]
["№ 1",null,"Из колоды в 36 карт наугад вытаскивают одну карту. Какова вероятность, что выпадет король или пики?"]
[]
[]
[null,null,"Определите события"]
[null,null,"А - ",null,null,null,null,null,null,null,null,null,"m=",null,null,"n=",null,null,"P(A)="]
[null,null,"В - ",null,null,null,null,null,null,null,null,null,"m=",null,null,"n=",null,null,"P(B)="]
[null,null,"События A и B совместные или несовместные?"]
[null,null,null,null,null,null,null,null,null,null,null,null,"P(A+B)="]
[null,null,null,null,null,null,null,null,null,null,null,null,null,null,{"$f":"IF(AND(ROUND(O10,3)=0.333,C10=\"совместные\"),\"Верно\",\"\")","v":""}]
["№ 2",null,"Из колоды в 36 карт наугад вытаскивают две карты. Какова вероятность того, что обе карты будут бубновой масти?"]
[]
[]
[null,null,"Определите события"]
[null,null,"А - ",null,null,null,null,null,null,null,null,null,"m=",null,null,"n=",null,null,"P(A)="]
[null,null,"В - ",null,null,null,null,null,null,null,null,null,"m=",null,null,"n=",null,null,"P(?)="]
[null,null,"События зависимые или независимые?"]
[null,null,null,null,null,null,null,null,null,null,null,null,"P(AB)="]
[null,null,null,null,null,null,null,null,null,null,null,null,null,null,{"$f":"IF(AND(C19=\"зависимые\",ROUND(O19,3)=0.057,S17=\"P(B|A)=\"),\"Верно\",\"\")","v":""}]
["№ 3",null,"Из чисел 1, 2, 3, 4, 5 сначала выбирается одно, а затем из оставшихся - второе число. Найти вероятность того, что будет выбрана нечётная цифра: а) в первый раз; б) оба раза; в) во второй раз."]
[]
[]
[null,null,"а)","Определите событие"]
[null,null,"А - ",null,null,null,null,null,null,null,null,null,"m=",null,null,"n=",null,null,"P(A)="]
[null,null,null,null,null,null,null,null,null,null,null,null,null,null,null,null,null,null,null,null,{"$f":"IF(U25=0.6,\"Верно\",\"\")","v":""}]
[null,null,"б)","Определите события"]
[null,null,"А - ",null,null,null,null,null,null,null,null,null,"m=",null,null,"n=",null,null,"P(A)="]
[null,null,"В - ",null,null,null,null,null,null,null,null,null,"m=",null,null,"n=",null,null,"P(?)="]
[null,null,"События зависимые или независимые?"]
[null,null,null,null,null,null,null,null,null,null,null,null,null,null,null,null,null,null,"P(AB)="]
[null,null,null,null,null,null,null,null,null,null,null,null,null,null,null,null,null,null,null,null,{"$f":"IF(AND(U31=0.3,C31=\"зависимые\"),\"Верно\",\"\")","v":""}]
[null,null,"в)","Вероятность какого события нужно вычислить?"]
[null,null,"A -"]
[null,null,"Определите гипотезы \n(какой может быть первая цифра?)"]
[null,null,"Н1 - ",null,null,null,null,null,null,null,null,null,"m=",null,null,"n=",null,null,"P(H1)="]
[null,null,"Н2 - ",null,null,null,null,null,null,null,null,null,"m=",null,null,"n=",null,null,"P(H2)="]
[null,null,"Сформулируйте события, обозначенные как A|H1 и A|H2"]
[null,null,"A|H1- ",null,null,null,null,null,null,null,null,null,"m=",null,null,"n=",null,null,"P(A|H1)="]
[null,null,"A|H2- ",null,null,null,null,null,null,null,null,null,"m=",null,null,"n=",null,null,"P(A|H2)="]
[null,null,"P(A)="]
[null,null,null,null,{"$f":"IF(E41=0.6,\"Верно\",\"\")","v":""}]
["№ 4",null,"Брошены два игральных кубика. Какова вероятность, что сумма выпавших очков равна пяти, произведение равно четырём, а разность - трём?"]
[]
["Указание",null,"Заполните таблицы формулами для нахождения всех возможных вариантов суммы, произведения и разности очков на двух кубиках. При заполнении таблицы \"Разность\" используйте функцию для вычисления модуля. Для каждой таблицы создайте правило условного форматирования для выделения цветом ячеек с нужным значением."]
[]
[]
[]
[null,null,"Сумма",null,null,null,null,null,null,null,"Произведение",null,null,null,null,null,null,null,"Разность"]
[null,null,"+",1,2,3,4,5,6,null,"*",1,2,3,4,5,6,null,"–",1,2,3,4,5,6]
[null,null,1,null,null,null,null,null,null,null,1,null,null,null,null,null,null,null,1]
[null,null,2,null,null,null,null,null,null,null,2,null,null,null,null,null,null,null,2]
[null,null,3,null,null,null,null,null,null,null,3,null,null,null,null,null,null,null,3]
[null,null,4,null,null,null,null,null,null,null,4,null,null,null,null,null,null,null,4]
[null,null,5,null,null,null,null,null,null,null,5,null,null,null,null,null,null,null,5]
[null,null,6,null,null,null,null,null,null,null,6,null,null,null,null,null,null,null,6]
[]
[null,null,"А - ","сумма очков равна пяти, произведение равно четырём, разность равна трём"]
[null,null,"m=",null,null,"P(A)="]
[null,null,"n="]
[null,null,null,null,null,null,null,{"$f":"IF(ROUND(H59,3)=0.056,\"Верно\",\"\")","v":""}]
["№ 5",null,"Трижды бросают два игральных кубика. Какова вероятность, что в первый раз сумма выпавших очков равна пяти, во второй раз произведение выпавших очков равно четырём, а в третий раз разность выпавших очков равна трём?"]
[]
["Указание",null,"Воспользуйтесь таблицами из предыдущей задачи."]
[]
[null,null,"Определите события"]
[null,null,"А -",null,null,null,null,null,null,null,null,"m=",null,null,"n=",null,null,"P(A)="]
[null,null,"В - ",null,null,null,null,null,null,null,null,"m=",null,null,"n=",null,null,"P(B)="]
[null,null,"С - ",null,null,null,null,null,null,null,null,"m=",null,null,"n=",null,null,"P(C)="]
[]
[null,null,null,null,null,null,null,null,null,null,null,null,null,"Р(А ? В ? С)="]
[null,null,null,null,null,null,null,null,null,null,null,null,null,null,null,null,null,{"$f":"IF(ROUND(R71,4)=0.0015,\"Верно\",\"\")","v":""}]
["№ 6",null,"Брошены два игральных кубика. Какова вероятность, что выпавшие значения дадут сумму в 10 очков или разность в два очка?"]
[]
["Указание",null,"Составьте таблицы и правила условного форматирования."]
[]
[null,null,"Сумма",null,null,null,null,null,null,null,"Разность"]
[null,null,"+",1,2,3,4,5,6,null,"–",1,2,3,4,5,6]
[null,null,1,null,null,null,null,null,null,null,1]
[null,null,2,null,null,null,null,null,null,null,2]
[null,null,3,null,null,null,null,null,null,null,3]
[null,null,4,null,null,null,null,null,null,null,4]
[null,null,5,null,null,null,null,null,null,null,5]
[null,null,6,null,null,null,null,null,null,null,6]
[]
[null,null,"Определите события"]
[null,null,"А -",null,null,null,null,null,null,null,null,"m=",null,null,"n=",null,null,"P(A)="]
[null,null,"В - ",null,null,null,null,null,null,null,null,"m=",null,null,"n=",null,null,"P(B)=",null,null,null,"P(A?B)="]
[null,null,null,null,null,null,null,null,null,null,null,null,null,null,null,null,null,null,null,null,null,null,null,{"$f":"IF(X88=0.25,\"Верно\",\"\")","v":""}]

{"sheet":"Часть 3","index":3,"n_rows":26,"n_cols":15,"rows_kept":26,"cut":false,"hidden":false,"merged":[[33,13,33,14],[9,3,9,7],[10,3,10,7],[11,3,11,7],[31,0,31,2],[13,2,15,15],[13,0,15,0],[17,3,17,5],[18,3,18,5],[27,1,30,1],[13,1,15,1],[31,3,31,15],[25,3,25,7],[9,12,9,13],[10,12,10,13],[11,12,11,13],[4,0,4,2],[4,3,4,15],[16,0,16,2],[16,3,16,15],[24,3,24,7],[23,3,23,7],[22,3,22,7],[21,3,21,7],[1,0,3,0],[35,13,35,14],[36,13,36,14],[0,0,0,15],[5,3,5,5],[6,3,6,5],[7,3,7,5],[1,2,3,15],[33,3,33,7],[34,3,34,7],[35,3,35,7],[1,1,3,1],[36,3,36,7],[32,13,32,14],[34,13,34,14],[19,3,19,5]]}
["Указание: В имеющихся шаблонах в ячейках с желтой заливкой следует указать события, \nm - количество благоприятных исходов, n - количество всех возможных исходов."]
["№ 1",null,"Имеются три одинаковых по виду коробки с новогодними шарами. В первой 5 золотых и 10 серебряных шаров, во второй - 7 золотых и 9 серебряных, в третьей - 10 золотых и 8 серебряных шаров. Из каждой коробки наугад вытаскивают по одному шару. Какова вероятность, что \nа) все три шара золотые; \nб) хотя бы один шар золотой; \nв) только один шар золотой."]
[]
[]
[]
[" ",null,"A1 - ",null,null,null,null,"m1= ",null,"n1= ",null,null,"p1= ",null,"q1="]
[null,null,"A2 - ",null,null,null,null,"m2= ",null,"n2= ",null,null,"p2= ",null,"q2="]
[null,null,"A3 - ",null,null,null,null,"m3= ",null,"n3= ",null,null,"p3= ",null,"q3="]
[]
[null,null,"В - ",null,null,null,null,null,null,null,"P(B)=",null,{"$f":"IF(ROUND(L10,4)=0.081,\"Верно\",\"\")","v":""}]
[null,null,"С - ",null,null,null,null,null,null,null,"P(C)=",null,{"$f":"IF(ROUND(L11,4)=0.8333,\"Верно\",\"\")","v":""}]
[null,null,"D - ",null,null,null,null,null,null,null,"P(D)=",null,{"$f":"IF(ROUND(L12,4)=0.4213,\"Верно\",\"\")","v":""}]
[]
["№ 2",null,"Вероятность того, что студент сдаст первый экзамен, равна 0,9; второй – 0,7; третий – 0,8. Найти вероятность того, что студентом будут сданы: \nа) только 2-й экзамен; \nб) только один экзамен; \nв) три экзамена; \nг) хотя бы один экзамен; \nд) ни одного экзамена."]
[]
[]
[]
[null,null,"A1 - ",null,null,null,null,null,"p1= ",null,null,"q1="]
[null,null,"A2 - ",null,null,null,null,null,"p2= ",null,null,"q2="]
[null,null,"A3 - ",null,null,null,null,null,"p3= ",null,null,"q3="]
[]
[null,null,"В - ",null,null,null,null,null,null,"P(B)=",null,{"$f":"IF(ROUND(K22,3)=0.014,\"Верно\",\"\")","v":""}]
[null,null,"С - ",null,null,null,null,null,null,"P(C)=",null,{"$f":"IF(ROUND(K23,3)=0.092,\"Верно\",\"\")","v":""}]
[null,null,"D - ",null,null,null,null,null,null,"P(D)=",null,{"$f":"IF(ROUND(K24,3)=0.504,\"Верно\",\"\")","v":""}]
[null,null,"E - ",null,null,null,null,null,null,"P(E)=",null,{"$f":"IF(ROUND(K25,3)=0.994,\"Верно\",\"\")","v":""}]
[null,null,"F - ",null,null,null,null,null,null,"P(F)=",null,{"$f":"IF(ROUND(K26,3)=0.006,\"Верно\",\"\")","v":""}]

{"sheet":"g8f9","index":4,"n_rows":63,"n_cols":61,"rows_kept":63,"cut":false,"hidden":true,"merged":[]}
[null,"01","02","03","04","05","06","07","08","09",10,11,12]
["01"]
["02"]
["03"]
["04"]
["05"]
["06"]
["07"]
["08"]
["09"]
[10]
[11]
[12]
[13]
[14]
[15]
[16]
[17]
[18]
[19]
[20]
[21]
[22]
[23]
[24]
[25]
[26]
[27]
[28]
[29]
[30]
[31]
[]
[]
[]
[]
[]
[]
[null,"00","01","02","03","04","05","06","07","08","09",10,11,12,13,14,15,16,17,18,19,20,21,22,23,24,25,26,27,28,29,30,31,32,33,34,35,36,37,38,39,40,41,42,43,44,45,46,47,48,49,50,51,52,53,54,55,56,57,58,59]
["00"]
["01"]
["01"]
["03"]
["04"]
["05"]
["06"]
["07"]
["08"]
["09"]
[10]
[11]
[12]
[13]
[14]
[15]
[16]
[17]
[18]
[19]
[20]
[21]
[22]
[23]